fUST/lending_fUST_20251015
["ID","MTS","AMOUNT","RATE_DAILY","PERIOD"]
[391281238,1760466639458,-500.0,0.00023175,2]
[391281239,1760466639467,-360.0,0.00023271,2]
[391281240,1760466639479,-500.0,0.00023287,2]
[391281241,1760466639489,-1083.34,0.00023764,2]
[391281242,1760466639498,-460.0,0.00023819,2]
[391281243,1760466639508,-587.0,0.0002396,2]
[391281244,1760466639517,-2003.74454901,0.00024,2]
[391281245,1760466639526,-286.83540479,0.00024,7]
[391281246,1760466639536,-720.0,0.00024031,20]
[391281247,1760466639546,-560.0,0.00024367,2]
[391281248,1760466639556,-402.02512307,0.00024603,2]
[391281249,1760466639566,-200.0,0.00024658,15]
[391281250,1760466639576,-1300.01,0.00024715,2]
[391281251,1760466639586,-9648.20582352,0.000248,2]
[391281252,1760466639595,-288.53684268,0.00024889,2]
[391281253,1760466639605,-435.27907373,0.00024889,2]
[391281254,1760466639614,-772.98,0.0002489,3]
[391281255,1760466639623,-38592.8232941,0.0002489,2]
[391281256,1760466639632,-21211.39,0.000249,7]
[391281257,1760466639641,-417.15472785,0.000249,7]
[391281258,1760466639651,-183535.897878,0.000249,2]
[391281259,1760466639661,-660.0,0.00024915,2]
[391281260,1760466639670,-219.517,0.00024971,8]
[391281261,1760466639679,-760.0,0.00025463,2]
[391281262,1760466639688,-160.0,0.00025534,3]
[391281263,1760466639697,-1516.67,0.00025665,2]
[391281264,1760466639707,-2451.9664713,0.0002599,2]
[391281265,1760466639716,-860.0,0.00026011,2]
[391281266,1760466639724,-9648.20582352,0.00026017,2]
[391281267,1760466639734,-6008.2,0.00026027,2]
[391281268,1760466639743,-823.0,0.00026084,2]
[391281269,1760466639753,-864.0,0.00026434,30]
[391281270,1760466639763,-960.0,0.00026559,2]
[391281271,1760466639772,-1733.34,0.00026616,2]
[391281272,1760466639782,-235.55408596,0.00027107,2]
[391281273,1760466639791,-1006.4760575,0.00027123,3]
[391281274,1760466639800,-160.0,0.00027275,4]
[391281275,1760466639810,-19296.411647,0.00027367,2]
[391281276,1760466639820,-91767.9489391,0.00027377,2]
[391281277,1760466639829,-6008.2,0.00027397,4]
[391281278,1760466639838,-7591.82,0.000274,2]
[391281279,1760466639847,-3727.42,0.000274,2]
[391281280,1760466639856,-3100.23348099,0.00027485,4]
[391281281,1760466639866,-1950.01,0.00027567,2]
[391281283,1760466639875,-500.0,0.000277,5]
[391281284,1760466639884,-9648.20582352,0.00027978,2]
[391281285,1760466639894,-880.30775885,0.00027989,2]
[391281286,1760466639903,-3517.70980437,0.00027989,2]
[391281287,1760466639912,-712.28204549,0.00027989,2]
[391281288,1760466639921,-2846.27905378,0.00027989,2]
[391281289,1760466639931,-18603.8837,0.00028017,2]
[391281290,1760466639940,-250.0,0.00028017,2]
[391281291,1760466639950,-250.0,0.00028017,2]
[391281292,1760466639960,-250.0,0.00028017,2]
[391281293,1760466639969,-250.0,0.00028017,2]
[391281294,1760466639978,-250.0,0.00028017,2]
[391281295,1760466639988,-250.0,0.00028017,2]
[391281296,1760466639997,-250.0,0.00028017,2]
[391281297,1760466640007,-250.0,0.00028017,2]
[391281298,1760466640016,-250.0,0.00028017,2]
[391281299,1760466640025,-250.0,0.00028017,2]
[391281300,1760466640035,-250.0,0.00028017,2]
[391281301,1760466640044,-250.0,0.00028017,2]
[391281302,1760466640053,-250.0,0.00028017,2]
[391281303,1760466640064,-250.0,0.00028017,2]
[391281304,1760466640073,-250.0,0.00028017,2]
[391281305,1760466640082,-250.0,0.00028017,2]
[391281306,1760466640091,-250.0,0.00028017,2]
[391281307,1760466640100,-250.0,0.00028017,2]
[391281308,1760466640109,-9648.20582352,0.00028137,2]
[391281309,1760466640119,-91767.9489391,0.00028147,2]
[391281310,1760466640129,-9648.20582352,0.00028147,2]
[391281311,1760466640138,-500.0,0.00028173,5]
[391281313,1760466640147,-1152.0,0.00028396,2]
[391281314,1760466640156,-1000.0,0.00028517,7]
[391281316,1760466640166,-2166.68,0.00028517,2]
[391281317,1760466640175,-19292.2273969,0.00028565,2]
[391281318,1760466640183,-1498.19796217,0.00028657,2]
[391281319,1760466640193,-1000.0,0.00028721,5]
[391281321,1760466640202,-19296.411647,0.00028747,2]
[391281323,1760466640212,-91767.9489391,0.00028757,2]
[391281324,1760466640220,-9648.20582352,0.0002876,2]
[391281325,1760466640229,-6008.2,0.00028767,6]
[391281326,1760466640238,-357.288314,0.000288,30]
[391281327,1760466640247,-355.114227,0.000288,30]
[391281329,1760466640256,-151.93341384,0.00028959,30]
[391281331,1760466640265,-19296.411647,0.0002899,2]
[391281332,1760466640275,-107640.04847632,0.00029,120]
[391281333,1760466640283,-200.25802931,0.00029,120]
[391281334,1760466640293,-160.0,0.00029016,5]
[391281335,1760466640303,-1498.19796215,0.00029056,2]
[391281336,1760466640314,-1000.0,0.00029078,30]
[391281337,1760466640323,-1812.54082223,0.00029083,2]
[391281338,1760466640332,-20006.03981059,0.00029113,2]
[391281339,1760466640341,-600.0,0.00029217,2]
[391281340,1760466640351,-357.288314,0.00029226,30]
[391281342,1760466640360,-355.114227,0.00029226,30]
[391281343,1760466640369,-1646.93005109,0.00029268,5]
[391281345,1760466640378,-166.65301315,0.00029315,5]
[391281347,1760466640387,-1000.0,0.00029339,7]
[391281349,1760466640397,-151.93341384,0.00029342,30]
[391281350,1760466640408,-21211.39,0.000294,7]
[391281352,1760466640419,-1625.489778,0.000294,3]
[391281354,1760466640427,-851.0,0.00029409,7]
[391281355,1760466640437,-9648.20582352,0.00029422,2]
[391281356,1760466640447,-1532.38206024,0.00029432,2]
[391281358,1760466640456,-357.288314,0.00029444,2]
[391281360,1760466640465,-355.114227,0.00029444,2]
[391281361,1760466640475,-1498.19796215,0.00029455,2]
[391281363,1760466640485,-1060.5796671,0.00029456,2]
[391281365,1760466640494,-3727.42,0.000295,2]
[391281367,1760466640503,-600.0,0.00029521,2]
[391281369,1760466640512,-5888.0,0.00029543,7]
[391281370,1760466640521,-5000.0,0.00029546,25]
[391281372,1760466640530,-5000.0,0.00029546,21]
[391281374,1760466640539,-5000.0,0.00029546,20]
[391281376,1760466640547,-94999.999999,0.0002956,2]
[391281377,1760466640556,-4505.0,0.00029594,7]
[391281379,1760466640566,-1000.0,0.000296,2]
[391281381,1760466640575,-500.0,0.0002963,5]
[391281383,1760466640584,-500.0,0.0002963,20]
[391281385,1760466640595,-500.0,0.0002963,5]
[391281387,1760466640603,-500.0,0.0002963,5]
[391281389,1760466640612,-500.0,0.0002963,5]
[391281391,1760466640622,-500.0,0.0002963,5]
[391281394,1760466640632,-512.35255983,0.0002963,20]
[391281397,1760466640641,-357.288314,0.00029652,30]
[391281400,1760466640650,-355.114227,0.00029652,30]
[391281403,1760466640659,-169.969203,0.00029652,30]
[391281406,1760466640668,-174.271572,0.00029652,30]
[391281408,1760466640678,-12609.94585011,0.00029661,2]
[391281410,1760466640686,-851.0,0.00029678,2]
[391281412,1760466640695,-7591.82,0.000297,2]
[391281414,1760466640704,-151.93341384,0.00029726,30]
[391281416,1760466640712,-6797.06793017,0.000298,120]
[391281418,1760466640722,-600.0,0.00029825,2]
[391281420,1760466640731,-1498.19796215,0.00029854,2]
[391281422,1760466640739,-150.0,0.00029873,5]
[391281423,1760466640748,-9648.20582352,0.00029886,2]
[391281425,1760466640757,-21970.9263,0.00029897,5]
[391281427,1760466640766,-500.0,0.000299,60]
[391281429,1760466640775,-500.0,0.000299,60]
[391281430,1760466640785,-500.0,0.000299,120]
[391281431,1760466640793,-300.63479536,0.000299,120]
[391281432,1760466640802,-1500.0,0.000299,3]
[391281433,1760466640812,-439.5346707,0.00029928,30]
[391281434,1760466640821,-19296.411647,0.0002999,2]
[391281435,1760466640830,-498.0,0.00029999,2]
[391281436,1760466640839,-627.30057122,0.0003,2]
[391281437,1760466640848,-208014.92986209,0.0003,14]
[391281438,1760466640857,-188.114,0.0003,2]
[391281439,1760466640867,-22798.43658958,0.0003,120]
[391281440,1760466640876,-2546.56826755,0.0003,2]
[391281441,1760466640886,-1103.0,0.0003,7]
[391281442,1760466640895,-1790.65524495,0.0003,2]
[391281443,1760466640903,-7284.07544672,0.0003,2]
[391281444,1760466640912,-301.41338794,0.0003,120]
[391281445,1760466640921,-7114.23578319,0.0003,30]
[391281446,1760466640930,-646.85553949,0.0003,120]
[391281447,1760466640939,-525.10596981,0.0003,2]
[391281448,1760466640948,-785.81490251,0.0003,60]
[391281449,1760466640958,-8041.94999918,0.0003,2]
[391281450,1760466640967,-204.0,0.0003003,25]
[391281451,1760466640976,-851.0,0.00030036,2]
[391281452,1760466640985,-8359.3072822,0.00030054,2]
[391281453,1760466640994,-357.288314,0.00030078,30]
[391281454,1760466641003,-355.114227,0.00030078,30]
[391281455,1760466641012,-169.969203,0.00030078,30]
[391281456,1760466641021,-174.271572,0.00030078,30]
[391281457,1760466641030,-163.379598,0.00030078,30]
[391281458,1760466641039,-1000.0,0.000301,2]
[391281459,1760466641048,-96526.34725221,0.000301,3]
[391281460,1760466641065,-32664.90718913,0.000301,3]
[391281461,1760466641075,-23682.04200238,0.000301,3]
[391281462,1760466641086,-800.0,0.0003012,2]
[391281463,1760466641095,-834.71302304,0.0003012,7]
[391281464,1760466641104,-600.0,0.0003013,2]
[391281465,1760466641113,-981.0,0.00030135,2]
[391281466,1760466641122,-2161.0,0.00030135,2]
[391281467,1760466641132,-631.0,0.00030135,2]
[391281468,1760466641141,-411.0,0.00030135,2]
[391281469,1760466641151,-418.168,0.00030135,2]
[391281470,1760466641160,-6008.2,0.00030136,8]
[391281471,1760466641169,-800.0,0.0003015,2]
[391281472,1760466641178,-851.0,0.00030151,2]
[391281473,1760466641188,-33679.15911287,0.00030154,2]
[391281474,1760466641279,-1698.0,0.00030154,2]
[391281475,1760466641294,-520.86594304,0.00030154,2]
[391281821,1760466646421,-417.15472785,0.00024603,2]
[391281823,1760466646431,-33564.84527214,0.00027123,2]
[391281825,1760466646442,-4663.72456454,0.00027123,2]
[391281828,1760466646454,-5758.28408553,0.00027123,2]
[391281830,1760466646463,-3443.82756223,0.00029084,2]
[391281832,1760466646474,-1604.74,0.00030144,10]
[391281833,1760466646483,-102412.81068544,0.00030154,2]
[391282957,1760466768179,500.0,0.00030454,60]
[391282958,1760466768438,500.0,0.00030454,60]
[391282959,1760466768683,500.0,0.00030454,60]
[391282960,1760466769043,151.55279603,0.00030454,60]
[391282961,1760466804603,567.33526837,0.00030459,60]
[391282962,1760466856637,500.0,0.00030459,60]
[391282963,1760466856900,172.35879446,0.00030459,60]
[391282964,1760466971759,500.0,0.00030459,60]
[391282965,1760466971993,500.0,0.00030459,60]
[391282966,1760467006227,505.02720768,0.00030459,60]
[391283174,1760467838483,-150.0,0.00019478,2]
[391283175,1760467838495,-150.0,0.00020405,2]
[391283176,1760467838507,-7953.17455918,0.0002132,2]
[391283177,1760467838520,-195.0,0.00021333,2]
[391283178,1760467838533,-372.0,0.00021846,2]
[391283179,1760467838545,-300.0,0.00021846,2]
[391283180,1760467838557,-300.0,0.00021847,20]
[391283181,1760467838567,-300.0,0.00021847,20]
[391283182,1760467838577,-300.0,0.00021847,20]
[391283183,1760467838588,-300.0,0.00021847,20]
[391283184,1760467838600,-300.0,0.00021847,20]
[391283185,1760467838613,-300.0,0.00021847,20]
[391283186,1760467838625,-300.0,0.00021847,20]
[391283187,1760467838638,-300.0,0.00021847,20]
[391283188,1760467838651,-300.0,0.00021847,20]
[391283189,1760467838663,-300.0,0.00021847,20]
[391283190,1760467838676,-300.0,0.00021847,20]
[391283193,1760467838688,-300.0,0.00021847,20]
[391283195,1760467838702,-300.0,0.00021847,20]
[391283196,1760467838715,-300.0,0.00021847,20]
[391283197,1760467838731,-300.0,0.00021847,20]
[391283198,1760467838743,-260.0,0.0002226,2]
[391283199,1760467838756,-160.0,0.00023,2]
[391283200,1760467838768,-325.0,0.00023188,2]
[391283201,1760467838778,-390.0,0.00024115,2]
[391283202,1760467838789,-500.0,0.00024275,2]
[391283203,1760467838799,-644.91,0.00024326,10]
[391283204,1760467838810,-500.0,0.00024335,2]
[391283206,1760467838821,-500.0,0.00024335,2]
[391283207,1760467838833,-500.0,0.00024335,2]
[391283208,1760467838847,-500.0,0.00024335,2]
[391283209,1760467838859,-500.0,0.00024335,2]
[391283210,1760467838871,-545.82817485,0.00024335,2]
[391283211,1760467838881,-32554.08726597,0.00024336,30]
[391283212,1760467838900,-52570.81817473,0.00024336,30]
[391283213,1760467838912,-215.39772164,0.000246,2]
[391283215,1760467838923,-209.26945615,0.000246,2]
[391283216,1760467838935,-845.23007724,0.000246,2]
[391283217,1760467838946,-1543.80057626,0.000246,2]
[391283218,1760467838957,-248.68975351,0.000246,2]
[391283219,1760467838967,-175.97057362,0.000246,2]
[391283220,1760467838977,-387.41042723,0.000246,2]
[391283221,1760467838987,-417.15472785,0.00024636,2]
[391283222,1760467838998,-498.0,0.00024657,2]
[391283223,1760467839010,-1966.34629556,0.000248,2]
[391283224,1760467839021,-600.0,0.00024822,20]
[391283225,1760467839032,-429.6921645,0.00024823,2]
[391283226,1760467839043,-9678.44381706,0.00024867,2]
[391283227,1760467839054,-1198.55836972,0.00024867,2]
[391283228,1760467839065,-201.97578987,0.00024872,2]
[391283229,1760467839076,-304.69535162,0.00024872,2]
[391283230,1760467839086,-500.0,0.00024873,2]
[391283231,1760467839097,-11798.0777734,0.0002489,2]
[391283232,1760467839109,-215.39772164,0.000249,2]
[391283233,1760467839120,-209.26945615,0.000249,2]
[391283234,1760467839131,-845.23007724,0.000249,2]
[391283235,1760467839142,-1543.80057626,0.000249,2]
[391283236,1760467839154,-248.68975351,0.000249,2]
[391283237,1760467839166,-387.41042723,0.000249,2]
[391283238,1760467839177,-17154.85,0.000249,7]
[391283239,1760467839189,-344398.744396,0.000249,2]
[391283240,1760467839201,-175.613,0.00024967,8]
[391283241,1760467839212,-455.0,0.00025043,2]
[391283242,1760467839224,-215.39772164,0.000251,2]
[391283243,1760467839235,-209.26945615,0.000251,2]
[391283244,1760467839246,-845.23007724,0.000251,2]
[391283245,1760467839257,-1543.80057626,0.000251,2]
[391283246,1760467839267,-248.68975351,0.000251,2]
[391283247,1760467839278,-387.41042723,0.000251,2]
[391283248,1760467839288,-3932.69259112,0.0002537,2]
[391283249,1760467839299,-215.39772164,0.000254,2]
[391283250,1760467839309,-209.26945615,0.000254,2]
[391283251,1760467839320,-845.23007724,0.000254,2]
[391283252,1760467839330,-1543.80057626,0.000254,2]
[391283253,1760467839340,-248.68975351,0.000254,2]
[391283254,1760467839351,-387.41042723,0.000254,2]
[391283255,1760467839361,-160.0,0.000254,2]
[391283256,1760467839371,-1000.0,0.00025421,2]
[391283257,1760467839382,-215.39772164,0.000256,2]
[391283258,1760467839392,-209.26945615,0.000256,2]
[391283259,1760467839404,-845.23007724,0.000256,2]
[391283260,1760467839415,-1543.80057626,0.000256,2]
[391283261,1760467839426,-248.68975351,0.000256,2]
[391283262,1760467839437,-387.41042723,0.000256,2]
[391283263,1760467839447,-200.0,0.00025948,2]
[391283264,1760467839458,-520.0,0.0002597,2]
[391283265,1760467839468,-5006.83,0.00026027,2]
[391283266,1760467839479,-1198.55836972,0.00026215,2]
[391283267,1760467839490,-585.0,0.00026898,2]
[391283268,1760467839499,-720.0,0.00027304,30]
[391283269,1760467839508,-5006.83,0.00027397,4]
[391283270,1760467839518,-3354.68,0.000274,2]
[391283271,1760467839527,-9678.44381705,0.0002756,2]
[391283272,1760467839673,-1198.55836972,0.00027563,2]
[391283273,1760467839689,-650.0,0.00027825,2]
[391283274,1760467839699,-237.023554,0.00028169,5]
[391283275,1760467839708,-234.162928,0.00028169,5]
[391283276,1760467839720,-1000.0,0.000285,7]
[391283277,1760467839730,-1966.34629556,0.00028513,2]
[391283278,1760467839739,-250.0,0.00028523,2]
[391283279,1760467839749,-250.0,0.00028523,2]
[391283280,1760467839759,-250.0,0.00028523,2]
[391283281,1760467839768,-250.0,0.00028523,2]
[391283282,1760467839778,-250.0,0.00028523,2]
[391283283,1760467839787,-250.0,0.00028523,2]
[391283284,1760467839799,-250.0,0.00028523,2]
[391283285,1760467839808,-250.0,0.00028523,2]
[391283286,1760467839818,-250.0,0.00028523,2]
[391283287,1760467839827,-250.0,0.00028523,2]
[391283288,1760467839836,-250.0,0.00028523,2]
[391283289,1760467839846,-250.0,0.00028523,2]
[391283290,1760467839855,-18603.8837,0.00028523,2]
[391283291,1760467839864,-250.0,0.00028523,2]
[391283292,1760467839874,-250.0,0.00028523,2]
[391283293,1760467839883,-250.0,0.00028523,2]
[391283294,1760467839893,-250.0,0.00028523,2]
[391283295,1760467839904,-250.0,0.00028523,2]
[391283296,1760467839914,-250.0,0.00028523,2]
[391283297,1760467839923,-237.023554,0.00028745,5]
[391283298,1760467839933,-234.162928,0.00028745,5]
[391283299,1760467839942,-5006.83,0.00028767,6]
[391283300,1760467839951,-237.023554,0.000288,30]
[391283301,1760467839961,-234.162928,0.000288,30]
[391283302,1760467839971,-1198.55836972,0.0002891,2]
[391283303,1760467839980,-1104.65859027,0.00029,2]
[391283304,1760467839989,-1043.15,0.00029,2]
[391283305,1760467839999,-14012.1019607,0.00029071,2]
[391283306,1760467840008,-2251.15684789,0.00029078,2]
[391283307,1760467840017,-500.0,0.000291,5]
[391283308,1760467840026,-1966.34629556,0.00029164,2]
[391283309,1760467840036,-1043.15,0.00029174,2]
[391283310,1760467840045,-2251.15684789,0.00029178,2]
[391283311,1760467840054,-17154.85,0.000292,7]
[391283312,1760467840063,-237.023554,0.00029214,30]
[391283313,1760467840073,-234.162928,0.00029214,30]
[391283314,1760467840082,-600.0,0.00029217,2]
[391283315,1760467840091,-1176.5200948,0.00029243,30]
[391283316,1760467840099,-2251.15684789,0.00029278,2]
[391283317,1760467840109,-166.65301315,0.00029315,5]
[391283318,1760467840118,-237.023554,0.0002932,5]
[391283319,1760467840126,-234.162928,0.0002932,5]
[391283320,1760467840135,-1000.0,0.00029322,7]
[391283321,1760467840144,-151.93341385,0.00029342,30]
[391283322,1760467840154,-151.93341384,0.00029342,30]
[391283323,1760467840163,-1043.15,0.00029348,2]
[391283324,1760467840172,-500.0,0.00029375,5]
[391283325,1760467840182,-2251.15684789,0.00029378,2]
[391283326,1760467840191,-1625.489778,0.000294,3]
[391283327,1760467840200,-237.023554,0.00029444,2]
[391283328,1760467840210,-234.162928,0.00029444,2]
[391283329,1760467840219,-1060.5796671,0.00029456,2]
[391283330,1760467840229,-2251.15684789,0.00029478,2]
[391283331,1760467840239,-6832.64,0.000295,2]
[391283332,1760467840248,-600.0,0.00029521,2]
[391283333,1760467840257,-1043.15,0.00029522,2]
[391283334,1760467840266,-1966.34629556,0.00029536,2]
[391283335,1760467840275,-5000.0,0.00029546,21]
[391283336,1760467840285,-5000.0,0.00029546,25]
[391283337,1760467840294,-5000.0,0.00029546,21]
[391283338,1760467840303,-2251.15684789,0.00029578,2]
[391283339,1760467840312,-500.0,0.00029589,30]
[391283340,1760467840322,-500.0,0.00029589,30]
[391283341,1760467840332,-500.0,0.00029589,30]
[391283342,1760467840342,-1000.0,0.000296,2]
[391283343,1760467840351,-237.023554,0.00029627,30]
[391283344,1760467840360,-234.162928,0.00029627,30]
[391283345,1760467840369,-500.0,0.0002963,5]
[391283346,1760467840378,-1000.0,0.00029648,5]
[391283347,1760467840387,-2251.15684789,0.00029678,2]
[391283348,1760467840396,-151.0,0.000297,13]
[391283349,1760467840405,-500.0,0.00029702,30]
[391283350,1760467840414,-2251.15684789,0.00029778,2]
[391283351,1760467840424,-600.0,0.00029825,2]
[391283352,1760467840433,-392.1734423,0.00029856,30]
[391283353,1760467840442,-392.1734423,0.00029856,30]
[391283354,1760467840451,-295.5244275,0.00029857,2]
[391283355,1760467840460,-2855.0296717,0.00029857,2]
[391283356,1760467840469,-274.9078018,0.00029857,2]
[391283357,1760467840479,-163.110795,0.00029857,2]
[391283358,1760467840488,-868.9527384,0.00029857,2]
[391283359,1760467840498,-5561.4697088,0.00029857,2]
[391283360,1760467840508,-2251.15684789,0.00029878,2]
[391283361,1760467840517,-2408.0,0.00029885,2]
[391283362,1760467840526,-237.023554,0.00029896,5]
[391283363,1760467840536,-234.162928,0.00029896,5]
[391283364,1760467840545,-1500.0,0.000299,3]
[391283365,1760467840554,-1982.0,0.00029903,7]
[391283366,1760467840563,-1146.93005109,0.00029923,5]
[391283367,1760467840572,-237.023554,0.00029985,2]
[391283368,1760467840582,-234.162928,0.00029985,2]
[391283369,1760467840591,-1966.34629556,0.0002999,2]
[391283370,1760467840600,-500.0,0.00029999,30]
[391283371,1760467840609,-500.0,0.00029999,30]
[391283372,1760467840618,-500.0,0.00029999,30]
[391283373,1760467840628,-500.0,0.00029999,30]
[391283374,1760467840637,-500.0,0.00029999,30]
[391283375,1760467840647,-500.0,0.00029999,30]
[391283376,1760467840656,-500.0,0.00029999,30]
[391283377,1760467840666,-324.4654374,0.00029999,30]
[391283378,1760467840676,-3000.0,0.0003,11]
[391283379,1760467840685,-237.023554,0.0003,14]
[391283380,1760467840695,-234.162928,0.0003,14]
[391283381,1760467840704,-252.0,0.0003,60]
[391283382,1760467840713,-1103.0,0.0003,7]
[391283383,1760467840727,-864.0,0.00030035,30]
[391283384,1760467840736,-237.023554,0.00030041,30]
[391283385,1760467840745,-234.162928,0.00030041,30]
[391283386,1760467840754,-1177.6291172,0.00030065,30]
[391283387,1760467840763,-8359.3072822,0.00030073,2]
[391283388,1760467840772,-171.013,0.00030087,2]
[391283389,1760467840781,-204.0,0.0003009,25]
[391283390,1760467840791,-1000.0,0.000301,2]
[391283391,1760467840800,-981.0,0.00030114,2]
[391283392,1760467840810,-2161.0,0.00030114,2]
[391283393,1760467840819,-631.0,0.00030114,2]
[391283394,1760467840828,-150.0,0.00030114,2]
[391283395,1760467840838,-600.0,0.0003013,2]
[391283396,1760467840846,-5006.83,0.00030136,8]
[391283397,1760467840855,-13764.4240689,0.00030139,2]
[391283399,1760467840864,-1000.0,0.00030144,7]
[391283401,1760467840873,-70603.33448905,0.00030149,2]
[391283410,1760467840950,-1076.77197483,0.00030149,2]
[391283413,1760467840967,-22335.36712054,0.00030149,2]
[391283676,1760467843855,-150.0,0.00030114,2]
[391283679,1760467843865,-412.87663621,0.00030139,10]
[391283918,1760467846547,-816.92336379,0.00030139,10]
[391283920,1760467846556,-1178.68829621,0.00030149,2]
[391283922,1760467846567,-12321.82218749,0.00030149,2]
[391283927,1760467846602,-35218.37532757,0.00030149,2]
[391283929,1760467846614,-1719.49533249,0.00030149,2]
[391283935,1760467846668,-9241.19167479,0.00030149,2]
[391283937,1760467846680,-6807.71236288,0.00030149,2]
[391285059,1760468229795,500.0,0.00030449,60]
[391285060,1760468230037,500.0,0.00030449,60]
[391285061,1760468230310,500.0,0.00030449,60]
[391285062,1760468230543,500.0,0.00030449,60]
[391285063,1760468230811,500.0,0.00030449,60]
[391285064,1760468231077,500.0,0.00030449,60]
[391285065,1760468231319,500.0,0.00030449,60]
[391285066,1760468231577,500.0,0.00030449,60]
[391285067,1760468231813,500.0,0.00030449,60]
[391285068,1760468241348,500.0,0.00030449,60]
[391285069,1760468241629,500.0,0.00030449,60]
[391285070,1760468241875,500.0,0.00030449,60]
[391285071,1760468242452,500.0,0.00030449,60]
[391285072,1760468242708,500.0,0.00030449,60]
[391285073,1760468242946,500.0,0.00030449,60]
[391285074,1760468243183,500.0,0.00030449,60]
[391285075,1760468243425,500.0,0.00030449,60]
[391285076,1760468243663,500.0,0.00030449,60]
[391285077,1760468243919,500.0,0.00030449,60]
[391285078,1760468244247,500.0,0.00030449,60]
[391285079,1760468244410,500.0,0.00030449,60]
[391285080,1760468244646,237.252,0.00030449,60]
[391285089,1760468714600,247.61438164,0.00030437,60]
[391285237,1760469037920,-150.0,0.00019448,2]
[391285238,1760469037930,-150.0,0.00020374,2]
[391285239,1760469037940,-150.0,0.000213,2]
[391285240,1760469037949,-150.0,0.00022226,2]
[391285241,1760469037959,-150.0,0.00023152,2]
[391285242,1760469037969,-150.0,0.00024078,2]
[391285243,1760469037979,-541.28227731,0.000246,2]
[391285244,1760469037989,-417.15472785,0.00024649,2]
[391285245,1760469037999,-402.43064913,0.00024649,2]
[391285246,1760469038009,-541.28227731,0.000249,2]
[391285247,1760469038019,-150.0,0.00025004,2]
[391285248,1760469038029,-541.28227731,0.000251,2]
[391285249,1760469038038,-541.28227731,0.000254,2]
[391285250,1760469038050,-541.28227731,0.000256,2]
[391285251,1760469038064,-150.0,0.0002593,2]
[391285252,1760469038074,-1056.252499,0.00025943,2]
[391285253,1760469038084,-163.48,0.00026857,2]
[391285254,1760469038095,-1000.0,0.00027397,2]
[391285255,1760469038105,-570.78403441,0.00027397,2]
[391285256,1760469038115,-5533.0,0.00028069,2]
[391285257,1760469038125,-221.221983,0.00028221,5]
[391285258,1760469038138,-218.552066,0.00028221,5]
[391285259,1760469038148,-900.0,0.000285,7]
[391285260,1760469038158,-607.0,0.00028598,2]
[391285261,1760469038168,-221.221983,0.0002878,5]
[391285262,1760469038181,-218.552066,0.0002878,5]
[391285263,1760469038191,-221.221983,0.000288,30]
[391285264,1760469038200,-218.552066,0.000288,30]
[391285265,1760469038210,-392.1734423,0.00028898,30]
[391285266,1760469038222,-392.1734423,0.00028898,30]
[391285267,1760469038232,-151.93341385,0.00028959,30]
[391285268,1760469038242,-1014.39,0.00029,2]
[391285269,1760469038252,-250.0,0.0002905,2]
[391285270,1760469038262,-250.0,0.0002905,2]
[391285271,1760469038271,-250.0,0.0002905,2]
[391285272,1760469038281,-250.0,0.0002905,2]
[391285273,1760469038291,-250.0,0.0002905,2]
[391285274,1760469038300,-250.0,0.0002905,2]
[391285275,1760469038310,-250.0,0.0002905,2]
[391285276,1760469038320,-250.0,0.0002905,2]